bitfinex/quotes_ETHUSD_20240718
["timestamp","ask_amount","ask_price","bid_price","bid_amount"]
[1721302997962,0.822,3455.7,3455.6,0.55]
[1721302998297,0.822,3455.7,3455.6,0.07099938]
[1721302998436,0.822,3455.7,3455.6,0.62099938]
[1721302999984,0.822,3455.7,3455.6,0.07099938]
[1721303000166,3.71576,3455.7,3455.6,0.07099938]
[1721303000373,3.71576,3455.7,3455.0,5.19485]
[1721303000686,0.822,3455.5,3455.1,0.55]
[1721303000887,0.822,3455.5,3455.1,0.62110652]
[1721303005300,0.822,3455.5,3455.1,3.51535652]
[1721303005499,0.822,3455.5,3455.1,0.62110652]
[1721303005681,0.822,3455.3,3455.1,0.62110652]
[1721303006502,0.822,3455.3,3455.1,0.07110652]
[1721303006910,0.822,3455.3,3454.7,5.1753]
[1721303007081,0.822,3455.3,3455.2,0.07132955]
[1721303007287,0.822,3455.3,3454.8,0.55]
[1721303007487,0.822,3455.3,3455.2,0.07132955]
[1721303007705,0.822,3455.3,3454.8,0.55]
[1721303007890,0.822,3455.3,3455.2,0.07132955]
[1721303008085,0.822,3455.3,3454.8,0.55]
[1721303008300,0.822,3455.3,3455.2,0.07134555]
[1721303008488,0.822,3455.3,3454.8,0.55]
[1721303008692,0.822,3455.3,3455.2,0.07134555]
[1721303008889,0.822,3455.3,3454.8,0.55]
[1721303009098,0.822,3455.3,3455.2,0.07134555]
[1721303009299,0.822,3455.3,3454.8,3.4445]
[1721303009489,0.822,3455.3,3455.2,0.07134555]
[1721303009690,0.822,3455.3,3454.8,3.4445]
[1721303009899,0.822,3455.3,3455.2,0.07134555]
[1721303010107,0.822,3455.3,3454.8,3.4445]
[1721303010306,0.822,3455.3,3455.2,0.07134555]
[1721303010607,0.822,3455.3,3454.8,3.4445]
[1721303010801,0.822,3455.3,3455.2,0.07134555]
[1721303010998,0.822,3455.3,3454.8,3.4445]
[1721303011202,0.822,3455.3,3455.2,0.07134555]
[1721303011398,0.822,3455.3,3454.8,3.4445]
[1721303012011,0.822,3455.3,3454.9,0.07140984]
[1721303012211,0.822,3455.3,3455.0,0.55]
[1721303012584,6.5644325,3456.1,3455.2,2.3132]
[1721303012786,0.822,3455.7,3455.3,0.55]
[1721303012972,0.822,3455.7,3455.3,0.62132412]
[1721303013384,0.822,3455.7,3455.3,3.51542412]
[1721303014791,0.822,3455.7,3455.4,2.89395]
[1721303014991,0.822,3455.9,3455.5,3.4439]
[1721303015218,0.822,3455.9,3455.6,2.3787]
[1721303015525,0.822,3455.9,3455.7,0.55]
[1721303015721,0.822,3455.9,3455.7,0.62123841]
[1721303016081,1.482878,3455.9,3455.7,0.07123841]
[1721303016392,2.89377,3455.7,3455.1,2.89424]
[1721303016590,0.822,3455.5,3455.2,0.55]
[1721303017779,0.822,3455.5,3455.2,3.44418]
[1721303019127,0.822,3455.7,3455.2,3.44418]
[1721303019621,1.2157725,3456.1,3455.4,2.264]
[1721303019929,0.822,3456.0,3455.6,2.89383]
[1721303020092,0.822,3456.0,3455.7,0.55]
[1721303020298,1.2157725,3456.2,3455.7,0.55]
[1721303020822,4.1091225,3456.2,3455.7,0.55]
[1721303021031,1.2157725,3456.2,3455.7,0.55]
[1721303021238,4.1090525,3456.3,3455.7,0.55]
[1721303021533,4.1091225,3456.2,3455.7,0.55]
[1721303023312,5.90088905,3456.2,3455.7,0.55]
[1721303023534,5.90088905,3456.2,3455.6,0.55]
[1721303023924,2.4431,3456.1,3455.6,3.44384]
[1721303024337,2.4431,3456.1,3455.6,0.55]
[1721303025449,5.90088905,3456.2,3455.6,0.55]
[1721303025646,4.1091225,3456.2,3455.6,3.44385]
[1721303028029,4.1091225,3456.2,3455.7,0.07121555]
[1721303029681,1.2157725,3456.2,3455.8,5.22257]
[1721303029964,1.3647964,3456.4,3455.9,3.514711]
[1721303030174,0.1490239,3456.4,3455.9,3.514711]
[1721303033242,0.1490239,3456.4,3456.0,2.8935]
[1721303033431,0.1490239,3456.4,3456.1,0.6211116]
[1721303037948,0.1490239,3456.4,3456.1,3.5145416]
[1721303038250,0.1490239,3456.4,3456.2,2.4029]
[1721303038449,0.1490239,3456.4,3456.3,0.06854659]
[1721303038763,0.1490239,3456.4,3456.2,2.4029]
[1721303039090,0.1490239,3456.4,3456.3,0.06854659]
[1721303039267,0.1490239,3456.4,3456.2,2.4029]
[1721303039582,0.1490239,3456.4,3456.3,0.06854659]
[1721303040284,0.9700239,3456.4,3456.2,5.29624]
[1721303040493,0.9700239,3456.4,3456.3,0.06854659]
[1721303040782,0.9700239,3456.4,3456.2,5.29624]
[1721303040986,0.9700239,3456.4,3456.3,0.06854659]
[1721303041290,0.9700239,3456.4,3456.2,5.29624]
[1721303041474,0.9700239,3456.4,3456.3,0.06853064]
[1721303041649,0.9700239,3456.4,3456.2,5.29624]
[1721303041851,0.9700239,3456.4,3456.3,0.06853064]
[1721303042048,0.9700239,3456.4,3456.2,5.29624]
[1721303042251,0.9700239,3456.4,3456.3,0.06852836]
[1721303042474,0.9700239,3456.4,3456.1,0.55]
[1721303042787,0.1490239,3456.4,3456.2,0.06854978]
[1721303042950,0.821,3456.3,3456.2,0.06854978]
[1721303044883,3.77226978,3456.3,3456.2,0.06854978]
[1721303045091,3.77226978,3456.3,3455.0,2.89433]
[1721303045092,2.8937,3455.8,3455.1,2.89426]
[1721303045264,1.9197954,3456.3,3455.0,2.3998]
[1721303045265,2.89383,3455.7,3455.4,0.06654732]
[1721303045462,0.821,3455.5,3455.4,0.06654732]
[1721303045706,0.821,3455.5,3455.0,5.29409]
[1721303045913,0.821,3455.5,3455.4,0.06654732]
[1721303046070,0.821,3455.5,3455.0,5.29409]
[1721303046270,0.821,3455.3,3455.1,0.06661161]
[1721303046468,0.821,3455.3,3455.0,5.29409]
[1721303046665,0.821,3455.3,3455.1,0.06661161]
[1721303046905,0.821,3455.3,3455.0,5.29409]
[1721303047110,0.821,3455.3,3455.1,0.61661161]
[1721303047907,0.821,3455.3,3455.2,2.89418]
[1721303048113,0.821,3455.4,3455.2,3.51077018]
[1721303048299,0.821,3455.4,3455.2,2.96077018]
[1721303048500,0.821,3455.4,3455.3,0.55]
[1721303048741,0.821,3455.4,3455.3,0.61656875]
[1721303055758,1.21335271,3455.9,3455.4,2.459]
[1721303055964,0.821,3456.0,3455.6,2.89382]
[1721303056111,0.821,3456.0,3455.7,0.55]
[1721303056443,0.821,3455.8,3455.7,0.55]
[1721303057548,0.821,3455.8,3455.7,0.61664204]
[1721303058141,0.821,3455.8,3455.7,0.06664204]
[1721303058549,0.821,3455.8,3455.6,2.89384]
[1721303058713,0.821,3455.8,3455.7,0.61664204]
[1721303059440,0.821,3455.8,3455.7,3.51040204]
[1721303063151,0.821,3455.8,3455.7,0.61664204]
[1721303064456,0.821,3455.8,3455.7,0.06664204]
[1721303064633,0.821,3455.8,3455.1,2.8942]
[1721303064836,0.821,3455.4,3455.2,0.06676054]
[1721303065353,0.821,3455.4,3455.2,2.96089054]
[1721303065720,0.821,3455.4,3455.3,0.55]
[1721303066125,0.821,3455.4,3455.3,0.61673911]
[1721303069376,0.821,3455.4,3455.3,0.06673911]
[1721303069870,0.821,3455.4,3455.3,0.06670047]
[1721303070074,0.821,3455.4,3455.1,2.8942]
[1721303070239,5.37377,3455.7,3455.2,0.6167219]
[1721303070435,0.821,3455.3,3455.2,0.6167219]
[1721303070843,0.821,3455.3,3455.2,0.0667219]
[1721303071075,3.7151,3455.3,3454.7,2.4608]
[1721303071278,0.821,3454.8,3454.7,5.3554]
[1721303071583,0.821,3454.8,3454.6,2.89462]
[1721303072393,0.821,3454.8,3454.7,0.55]
[1721303072583,0.821,3454.8,3454.7,0.61682907]
[1721303082199,0.821,3454.8,3454.7,3.51142907]
[1721303083393,0.821,3454.8,3454.7,5.93532907]
[1721303086277,1.21347473,3455.6,3455.1,2.89423]
[1721303086470,0.80396052,3455.5,3455.2,0.61685824]
[1721303086699,0.821,3455.3,3455.2,0.61685824]
[1721303089670,0.821,3455.3,3455.2,3.51103824]
[1721303092307,0.821,3455.3,3455.2,0.61685824]
[1721303098768,1.21347473,3455.7,3455.2,0.61685824]
[1721303099003,2.89372,3455.8,3455.2,0.61685824]
[1721303099004,4.10719473,3455.8,3455.2,5.91743824]
[1721303099223,0.821,3455.4,3455.2,5.91743824]
[1721303102380,1.21347473,3456.0,3455.2,0.61685824]
[1721303102681,0.821,3455.8,3455.7,2.89375]
[1721303102923,0.821,3456.0,3455.8,2.4152]
[1721303103126,0.821,3456.0,3455.9,0.0663943]
[1721303103766,0.821,3456.0,3455.9,3.5099443]
[1721303105315,0.1490239,3456.4,3455.9,3.5099443]
[1721303105518,0.1490239,3456.4,3456.1,2.89341]
[1721303105726,0.821,3456.2,3456.1,2.89341]
[1721303106029,0.821,3456.2,3456.1,3.44341]
[1721303107214,0.821,3456.2,3456.1,0.55]
[1721303107418,0.821,3456.2,3456.0,0.55]
[1721303107615,0.821,3456.1,3456.0,0.55]
[1721303108686,0.821,3456.1,3455.8,2.89366]
[1721303108908,0.1490239,3456.4,3455.9,0.55]
[1721303109082,0.821,3456.0,3455.9,0.55]
[1721303109533,0.821,3456.0,3455.8,0.55]
[1721303109696,0.821,3455.9,3455.6,0.55]
[1721303110029,2.95127978,3456.3,3455.6,3.44383]
[1721303110030,0.821,3455.7,3455.6,3.44383]
[1721303111009,0.821,3455.7,3455.6,0.55]
[1721303111835,0.821,3455.7,3455.6,3.44385]
[1721303112693,0.821,3455.7,3455.6,0.55]
[1721303112928,0.821,3455.7,3455.5,3.44393]
[1721303113228,0.821,3455.7,3455.5,0.55]
[1721303113430,0.821,3455.7,3455.4,0.55]
[1721303113731,0.821,3455.5,3455.3,3.44409]
[1721303117624,0.821,3455.5,3455.4,0.06625376]
[1721303117800,0.821,3455.5,3455.4,0.61625376]
[1721303118967,1.21347473,3456.2,3455.5,2.4054]
[1721303119094,0.821,3455.9,3455.8,2.89368]
[1721303119417,3.0422239,3456.4,3455.8,3.50985942]
[1721303119620,0.821,3456.0,3455.8,2.95985942]
[1721303119936,0.821,3456.0,3455.9,0.55]
[1721303120103,0.821,3456.0,3455.9,0.616158]
[1721303127559,4.25569863,3456.4,3455.9,0.616158]
[1721303127852,0.821,3456.2,3456.0,5.18056]
[1721303128026,0.821,3456.2,3456.1,0.55]
[1721303128221,0.821,3456.2,3456.1,0.61597048]
[1721303132056,0.821,3456.2,3456.1,0.09573664]
[1721303132261,1.14496239,3456.2,3456.1,0.09573664]
[1721303132571,1.14496239,3456.2,3455.4,2.89394]
[1721303132572,2.89344,3456.1,3455.4,2.89394]
[1721303132724,0.821,3455.6,3455.4,2.89394]
[1721303133053,0.821,3455.6,3455.4,2.89396]
[1721303133979,0.821,3455.6,3455.5,2.89393]
[1721303134347,0.821,3455.6,3455.5,3.44393]
[1721303135150,0.821,3455.6,3455.2,5.23497]
[1721303135483,0.821,3455.4,3455.3,2.8941]
[1721303135641,0.821,3455.6,3455.3,2.8941]
[1721303135973,1.21347473,3456.1,3455.2,2.3408]
[1721303136160,0.821,3455.8,3455.5,5.78774]
[1721303136482,0.821,3455.8,3455.7,2.89376]
[1721303136679,0.821,3455.8,3455.7,5.94116]
[1721303139946,0.821,3455.8,3455.7,3.0474]
[1721303140140,0.821,3455.8,3455.7,0.55]
[1721303140337,0.821,3455.8,3455.6,3.44377]
[1721303141681,0.821,3455.8,3455.7,2.89376]
[1721303141987,0.821,3455.8,3455.7,3.44376]
[1721303145767,2.03447473,3456.0,3455.8,2.89363]
[1721303145957,0.821,3456.0,3455.9,0.55]
[1721303146846,2.03447473,3456.0,3455.9,0.55]
[1721303147604,2.03447473,3456.0,3455.9,0.64589022]
[1721303147955,0.821,3456.0,3455.9,0.64589022]
[1721303148678,2.03447473,3456.0,3455.9,0.64589022]
[1721303149298,0.821,3456.0,3455.9,3.53949022]
[1721303149796,2.03447473,3456.0,3455.9,3.53949022]
[1721303149979,0.821,3456.0,3455.9,3.53949022]
[1721303155571,1.21347473,3456.0,3455.9,3.53949022]
[1721303155800,2.03447473,3456.0,3455.9,3.53949022]
[1721303156009,2.03447473,3456.2,3455.9,5.93069022]
[1721303156610,2.18349863,3456.4,3456.0,2.89347]
[1721303156795,2.18349863,3456.4,3456.1,0.55]
[1721303156965,2.18349863,3456.4,3456.2,0.09575069]
[1721303157274,1.21347473,3456.3,3456.2,0.09575069]
[1721303157475,1.21347473,3456.3,3456.2,0.64575069]
[1721303158496,2.18349863,3456.4,3456.2,0.64575069]
[1721303161163,0.9700239,3456.4,3456.3,0.55]
[1721303161366,0.9700239,3456.4,3456.3,0.64572841]
[1721303161567,0.9700239,3456.4,3456.3,0.55]
[1721303161768,0.9700239,3456.4,3456.1,5.78678]
[1721303161769,0.9700239,3456.4,3456.2,0.55]
[1721303162000,0.9700239,3456.4,3456.3,0.09572388]
[1721303162209,0.9700239,3456.4,3456.3,0.64572388]
[1721303162499,0.9700239,3456.4,3456.3,0.55]
[1721303162806,0.9700239,3456.4,3456.2,0.55]
[1721303163182,0.9700239,3456.4,3456.3,0.09572388]
[1721303163497,0.9700239,3456.4,3456.3,0.55]
[1721303164008,0.9700239,3456.4,3456.2,0.55]
[1721303164517,0.9700239,3456.4,3456.3,0.09572388]
[1721303164805,0.9700239,3456.4,3456.3,0.64572388]
[1721303169009,3.3737239,3456.4,3456.3,0.64572388]
[1721303169206,4.41103876,3456.4,3456.3,0.64572388]
[1721303170804,7.30421876,3456.4,3456.3,0.64572388]
[1721303171004,7.30421876,3456.4,3455.7,2.89373]
[1721303171206,0.821,3455.9,3455.8,0.55]
[1721303171407,0.821,3455.9,3455.8,0.64579441]
[1721303182033,2.89336,3456.2,3455.8,0.64579441]
[1721303182034,0.821,3456.1,3455.8,0.64579441]
[1721303183534,3.71444,3456.1,3455.8,0.64579441]
[1721303184139,3.7146,3455.9,3455.8,0.09579441]
[1721303184342,7.82167473,3455.9,3455.8,0.09579441]
[1721303184635,2.89395,3455.5,3455.1,2.2795]
[1721303184835,0.821,3455.4,3455.1,2.2795]
[1721303185003,0.821,3455.4,3455.2,0.09598038]
[1721303186450,0.821,3455.4,3455.3,0.55]
[1721303186817,0.821,3455.4,3455.3,0.64595809]
[1721303188216,3.71502,3455.4,3455.3,0.64595809]
[1721303190539,7.39139837,3455.4,3455.3,0.09595809]
[1721303191046,7.39139837,3455.4,3454.3,7.32]
[1721303191047,2.89454,3454.8,3454.4,2.4271]
[1721303191207,0.821,3454.5,3454.4,2.4271]
[1721303191408,0.821,3454.5,3454.4,2.52025852]
[1721303191609,0.821,3454.7,3454.4,2.52025852]
[1721303192334,0.821,3454.9,3454.5,3.44476]
[1721303192539,0.821,3454.9,3454.6,2.4513]
[1721303192722,0.821,3454.9,3454.7,0.55]
[1721303193041,0.821,3454.9,3454.8,0.09306932]
[1721303193242,0.821,3454.9,3454.8,0.64306932]
[1721303193443,0.821,3454.9,3454.8,0.55]
[1721303193741,0.821,3454.9,3454.8,0.09314658]
[1721303193965,0.821,3454.9,3454.8,0.64314658]
[1721303194110,0.821,3454.9,3454.8,0.55]
[1721303194310,0.821,3454.9,3454.8,0.09314658]
[1721303194509,3.62206657,3455.7,3454.8,0.64314658]
[1721303194711,0.821,3454.9,3454.7,0.55]
[1721303198539,2.89452,3454.8,3454.7,0.55]
[1721303198861,2.89452,3454.8,3454.4,0.55]
[1721303199015,0.821,3454.5,3454.4,0.55]
[1721303200123,0.821,3454.7,3454.4,0.55]
[1721303201539,0.821,3454.7,3454.4,3.44484]
[1721303201743,0.821,3454.9,3454.6,2.4364]
[1721303202051,0.821,3454.9,3454.7,0.55]
[1721303202367,2.89424,3455.2,3454.7,0.55]
[1721303202368,0.821,3455.1,3454.7,0.55]
[1721303203365,2.89356,3456.0,3455.2,2.4364]
[1721303203552,0.821,3455.7,3455.3,3.44405]
[1721303203730,0.821,3455.7,3455.4,2.89401]
[1721303203927,0.821,3455.7,3455.5,0.55]
[1721303204152,3.0422339,3456.4,3455.5,0.55]
[1721303204153,0.821,3455.9,3455.5,0.55]
[1721303204350,0.821,3455.9,3455.4,0.55]
[1721303204863,0.821,3455.9,3455.5,2.89392]
[1721303205184,0.821,3455.9,3455.6,0.55]
[1721303205719,0.821,3455.9,3455.5,0.55]
[1721303206358,0.821,3455.7,3455.5,0.55]
[1721303206658,0.821,3455.7,3455.3,0.55]
[1721303207421,0.821,3455.7,3455.4,0.09287193]
[1721303207649,0.821,3455.7,3455.5,0.55]
[1721303208048,0.821,3455.7,3455.6,0.09282735]
[1721303208251,0.821,3455.7,3455.6,0.64282735]
[1721303210434,0.821,3455.9,3455.7,2.4009]
[1721303210675,0.821,3455.9,3455.8,0.64278278]
[1721303211585,2.89336,3456.2,3455.8,0.64278278]
[1721303211878,0.821,3456.0,3455.8,0.64278278]
[1721303212880,3.0422439,3456.4,3455.8,0.64278278]
[1721303213182,0.821,3456.1,3455.8,0.64278278]
[1721303213772,0.821,3456.1,3455.8,3.53646278]
[1721303217309,0.821,3456.1,3455.8,6.43007278]
[1721303217810,0.821,3456.1,3455.9,2.89358]
[1721303218122,0.821,3456.1,3456.0,0.64264734]
[1721303218599,0.821,3456.3,3456.1,2.4503]
[1721303218929,0.1490239,3456.4,3456.2,0.64260278]
[1721303219085,0.821,3456.3,3456.2,0.64260278]
[1721303219270,0.1490239,3456.4,3456.2,0.64260278]
[1721303222185,0.1490239,3456.4,3456.3,5.33866]
[1721303222509,0.1490239,3456.4,3456.3,5.9812405]
[1721303227228,0.1490239,3456.4,3456.3,8.8745005]
[1721303235627,0.1490239,3456.4,3456.3,9.6955005]
[1721303235808,0.1490239,3456.4,3456.3,12.6955005]
[1721303236231,0.1490239,3456.4,3456.3,15.5887605]
[1721303238200,0.1490239,3456.4,3456.3,14.7677605]
[1721303242336,0.1490239,3456.4,3456.3,11.8745005]
[1721303250842,0.1490239,3456.4,3456.3,6.5358405]
[1721303251016,0.1490239,3456.4,3456.3,0.0925805]
[1721303251422,3.3100239,3456.4,3456.1,2.89336]
[1721303251642,3.3100239,3456.4,3456.3,0.08904579]
[1721303251848,3.3100239,3456.4,3456.2,0.08906807]
[1721303252022,2.4890239,3456.4,3456.3,0.08904579]
[1721303252220,0.1490239,3456.4,3456.3,0.08904579]
[1721303252537,0.1490239,3456.4,3456.3,0.63908665]
[1721303252845,0.1490239,3456.4,3456.3,0.55]
[1721303253006,0.1490239,3456.4,3456.3,0.08912297]
[1721303253212,0.1490239,3456.4,3456.3,0.63912297]
[1721303255146,0.9700239,3456.4,3456.3,0.63912297]
[1721303259554,3.8632039,3456.4,3456.3,0.63912297]
[1721303260356,3.8632039,3456.4,3455.6,5.89384]
[1721303260548,3.8632039,3456.4,3455.7,0.55]
[1721303260549,2.89328,3456.3,3455.7,0.55]
[1721303260853,2.89328,3456.3,3455.7,0.63943146]
[1721303261148,3.8632039,3456.4,3455.7,3.53316146]
[1721303262636,0.9700239,3456.4,3455.8,2.89368]
[1721303262962,0.9700239,3456.4,3455.9,0.63938689]
[1721303264771,0.1490239,3456.4,3456.1,2.89343]
[1721303264938,0.1490239,3456.4,3456.3,2.89326]
[1721303265137,0.1490239,3456.4,3456.3,5.44111843]
[1721303265341,0.1490239,3456.4,3456.3,6.0804162]
[1721303267035,0.1490239,3456.4,3456.3,6.02255777]
[1721303267438,0.1490239,3456.4,3456.3,8.91581777]
[1721303278991,0.1490239,3456.4,3456.3,15.63007777]
[1721303279223,0.1490239,3456.4,3456.3,18.1443088]
[1721303279481,1e-08,3456.4,3456.3,18.1443088]
[1721303279640,1e-08,3456.4,3456.3,19.0507139]
[1721303280071,1e-08,3456.4,3456.3,18.1443088]
[1721303280281,1e-08,3456.4,3456.3,19.0507139]
[1721303280449,1e-08,3456.4,3456.3,18.1443088]
[1721303280852,1e-08,3456.4,3456.3,21.9439739]
[1721303281076,1e-08,3456.4,3456.3,19.42974287]
[1721303281244,1e-08,3456.4,3456.3,21.94368357]
[1721303281441,1e-08,3456.4,3456.3,21.03727847]
[1721303283986,1e-08,3456.4,3456.3,19.52891189]
[1721303284197,1e-08,3456.4,3456.3,21.03727307]
[1721303284399,1e-08,3456.4,3456.3,18.52333777]
[1721303284683,1e-08,3456.4,3456.3,21.037273]
[1721303285052,1e-08,3456.4,3456.3,21.03727415]
[1721303285450,1e-08,3456.4,3456.3,21.64055072]
[1721303286391,1e-08,3456.4,3456.3,24.69055072]
[1721303286590,2.3101,3458.1,3457.5,2.89223]
[1721303286898,0.821,3458.0,3457.6,0.63563324]
[1721303287056,0.821,3458.0,3457.6,3.52780324]
[1721303288678,2.3101,3458.1,3457.6,3.52780324]
[1721303289399,2.3101,3458.1,3457.7,2.89207]
[1721303289556,0.821,3458.2,3457.8,0.55]
[1721303289899,0.821,3458.2,3457.8,0.63555241]
[1721303290254,5.15669,3458.3,3457.8,0.63555241]
[1721303290994,6.043597,3458.3,3457.8,0.63555241]
[1721303291716,0.821,3458.1,3457.8,0.63555241]
[1721303293117,5.15669,3458.3,3457.8,0.63555241]
[1721303293328,0.821,3458.2,3457.8,0.63555241]
[1721303293500,0.821,3458.0,3457.8,0.63555241]
[1721303297236,0.821,3458.0,3457.8,3.02275241]
[1721303297523,2.3838,3458.6,3457.8,0.63555241]
[1721303297524,0.821,3458.3,3457.8,0.63555241]
[1721303298329,0.821,3458.3,3457.8,3.52751241]
[1721303300199,3.12985,3458.5,3457.9,2.2771]
[1721303300545,0.821,3458.4,3458.0,0.63526059]
[1721303302437,5.34456,3458.9,3458.1,2.89168]
[1721303302605,0.821,3458.8,3458.2,3.44167]
[1721303302799,0.821,3458.8,3458.2,3.52688608]
[1721303303196,0.821,3458.8,3458.3,2.89157]
[1721303303402,0.821,3458.8,3458.4,0.55]
[1721303303626,0.821,3458.8,3458.4,0.63513754]
[1721303304266,2.4534,3458.9,3458.5,2.89142]
[1721303304537,0.821,3458.8,3458.6,0.63509304]
[1721303307443,3.7122,3458.8,3458.6,0.63509304]
[1721303309107,6.60344,3458.8,3458.6,0.63509304]
[1721303309554,8.1138,3458.7,3458.6,0.08509304]
[1721303309928,2.89149,3458.5,3457.9,7.32]
[1721303310248,0.821,3458.4,3458.0,0.55]
[1721303310543,0.821,3458.4,3458.0,0.63503423]
[1721303311950,2.8913,3458.7,3458.2,2.89166]
[1721303312124,3.7123,3458.7,3458.3,0.55]
[1721303312327,3.7123,3458.7,3458.3,0.63490395]
[1721303312646,0.821,3458.7,3458.3,0.63490395]
[1721303312957,2.89119,3458.8,3458.3,0.63490395]
[1721303313158,3.71219,3458.8,3458.3,0.63490395]
[1721303314267,6.60344,3458.8,3458.3,0.63490395]
[1721303314436,0.821,3458.6,3458.3,0.63490395]
[1721303314631,0.821,3458.5,3458.3,0.63490395]
[1721303315043,3.7125,3458.5,3458.3,0.63490395]
[1721303315346,2.89151,3458.4,3458.3,0.08490395]
[1721303315544,2.89151,3458.4,3457.9,7.32]
[1721303315734,0.821,3458.2,3458.0,0.55]
[1721303316134,0.821,3458.2,3457.8,2.421]
[1721303316135,0.821,3458.2,3457.9,3.55]
[1721303316373,0.821,3458.4,3457.9,3.55]
[1721303317435,3.71251,3458.4,3457.9,3.55]
[1721303321443,3.71239,3458.6,3458.0,2.3107]
[1721303321771,3.71239,3458.6,3458.1,0.55]
[1721303321977,2.89122,3458.8,3458.1,0.55]
[1721303322181,3.71226,3458.7,3458.1,0.55]
[1721303322851,3.71226,3458.7,3458.1,3.44175]
[1721303323640,0.821,3458.7,3458.1,3.44175]
[1721303324557,0.821,3458.7,3458.2,2.89166]
[1721303324769,0.821,3458.7,3458.3,0.55]
[1721303325173,0.821,3458.5,3458.1,0.55]
[1721303327574,0.821,3458.5,3458.2,0.08486042]
[1721303327885,0.821,3458.5,3458.3,0.55]
[1721303328245,0.821,3458.5,3458.4,0.08481592]
[1721303328442,0.821,3458.5,3458.4,0.63481592]
[1721303330285,0.821,3458.5,3458.4,2.94471592]
[1721303331584,1.21376657,3458.7,3458.4,2.94471592]
[1721303331755,0.821,3458.6,3458.5,0.55]
[1721303331957,0.821,3458.6,3458.5,0.63479367]
[1721303333267,0.821,3458.6,3458.5,0.08479367]
[1721303333474,0.821,3458.6,3458.5,0.63479367]
[1721303334280,3.71234,3458.6,3458.5,0.63479367]
[1721303335692,3.71234,3458.6,3458.5,0.08479367]
[1721303335874,3.71234,3458.6,3458.5,0.63479367]
[1721303336886,6.13024,3458.6,3458.5,0.63479367]
[1721303337086,7.30550165,3458.6,3458.5,0.08479367]
[1721303337299,14.60560159,3458.6,3458.5,0.08479367]
[1721303337506,2.89194,3457.9,3457.7,7.32]
[1721303337787,0.821,3457.8,3457.7,7.32]
[1721303338155,3.71301,3457.8,3457.7,7.32]
[1721303339281,4.92712686,3458.0,3457.7,9.6711]
[1721303339482,4.92712686,3458.0,3457.7,2.3511]
[1721303339781,3.71291,3458.0,3457.7,2.3511]
[1721303339984,1.21421686,3458.1,3457.7,2.3511]
[1721303340184,3.71269,3458.2,3457.8,0.55]
[1721303340865,2.89176,3458.1,3457.8,0.55]
[1721303341186,0.821,3458.0,3457.8,0.55]
[1721303342397,0.821,3458.0,3457.9,0.08494304]
[1721303350294,0.821,3458.2,3457.9,0.08494304]
[1721303350784,3.71268,3458.2,3457.9,0.08494304]
[1721303351502,0.821,3458.0,3457.9,0.08494304]
[1721303359274,0.821,3458.0,3457.9,2.43024304]
[1721303360590,0.821,3458.2,3457.9,2.43024304]
[1721303360909,0.821,3458.0,3457.9,2.43024304]
[1721303363108,1.21421686,3458.4,3457.9,2.43024304]
[1721303363315,1.51653873,3458.6,3457.9,2.43024304]
[1721303363316,0.821,3458.3,3458.0,0.55]
[1721303363628,1.21421686,3458.6,3458.1,0.08497113]
[1721303363928,2.4094,3459.1,3458.3,2.2935]
[1721303363929,0.821,3458.4,3458.3,2.2935]
[1721303364207,0.821,3458.6,3458.3,2.37842435]
[1721303364396,0.821,3458.6,3458.4,0.55]
[1721303364787,0.821,3458.6,3458.5,0.08487985]
[1721303365115,0.821,3458.6,3458.5,0.63487985]
[1721303370287,4.10514686,3459.1,3458.5,0.63487985]
[1721303370598,0.821,3458.8,3458.6,0.55]
[1721303371019,0.821,3458.8,3458.7,0.08471288]
[1721303371187,0.821,3458.8,3458.7,0.63471288]
[1721303372333,0.821,3458.8,3458.7,2.89621288]
[1721303372638,0.821,3459.0,3458.7,2.89621288]
[1721303372924,0.821,3459.0,3458.8,0.55]
[1721303373290,0.821,3459.0,3458.9,0.08458116]
[1721303373723,0.821,3459.0,3458.9,0.63458116]
[1721303373890,1.21421686,3459.4,3458.9,0.63458116]
[1721303374088,0.821,3459.2,3459.0,0.55]
[1721303374416,4.10484686,3459.5,3459.2,2.2754]
[1721303374792,0.821,3459.4,3459.3,0.08435384]
[1721303375022,0.821,3459.4,3459.2,2.2754]
[1721303375186,4.10484686,3459.5,3459.3,0.08435384]
[1721303375187,1.21421686,3459.5,3459.3,0.08435384]
[1721303375388,1.21421686,3459.7,3459.4,0.55]
[1721303375596,0.821,3459.5,3459.4,0.55]
[1721303375824,0.821,3459.5,3459.3,0.55]
[1721303375987,0.821,3459.4,3459.3,0.55]
[1721303377351,0.821,3459.6,3459.3,0.55]
[1721303381727,0.821,3459.4,3459.3,0.55]
[1721303381942,0.821,3459.4,3459.1,0.55]
[1721303382159,5.78129,3459.5,3459.3,0.08149777]
[1721303382352,0.821,3459.4,3459.2,0.08152001]
[1721303382650,2.89063,3459.5,3459.3,0.55]
[1721303382943,0.821,3459.3,3459.1,0.55]
[1721303383244,0.821,3459.3,3458.9,0.55]
[1721303387459,0.821,3459.3,3459.0,0.0814534]
[1721303387655,0.821,3459.3,3459.1,0.55]
[1721303388151,0.821,3459.3,3459.2,0.08140891]
[1721303388311,0.821,3459.3,3459.2,0.63140891]
[1721303405693,3.7116,3459.5,3459.2,0.63140891]
[1721303405901,3.7116,3459.5,3459.3,0.55]